bitfinex/quotes_ETHUSD_20241124
["timestamp","ask_amount","ask_price","bid_price","bid_amount"]
[1732457465573,4.69821,3305.7,3304.5,3.0]
[1732457465574,3.02547,3305.3,3304.5,3.0]
[1732457465896,1.6731,3305.7,3304.6,2.72347]
[1732457465897,3.0256,3305.2,3304.6,2.72347]
[1732457466074,3.02573,3305.0,3304.4,3.0]
[1732457466275,3.02586,3304.9,3304.1,3.27387]
[1732457466476,3.02586,3304.9,3304.2,3.0]
[1732457466477,3.0259,3304.8,3304.2,3.0]
[1732457466679,0.08,3305.7,3304.4,2.72359]
[1732457466680,6.0516,3304.7,3304.4,2.72359]
[1732457466875,6.0516,3304.7,3304.1,0.55]
[1732457466876,3.02645,3304.2,3304.1,0.55]
[1732457467110,3.02632,3304.4,3304.1,0.55]
[1732457467111,3.02638,3304.3,3304.1,0.55]
[1732457467406,3.02632,3304.4,3304.1,0.55]
[1732457467407,3.02645,3304.2,3304.1,0.55]
[1732457467775,9.02805,3304.2,3304.1,0.55]
[1732457468212,6.0016,3304.2,3302.5,2.72516]
[1732457468384,3.02687,3303.8,3303.1,2.72466]
[1732457468580,6.0016,3303.7,3303.3,2.72449]
[1732457468794,6.0016,3303.7,3303.1,2.72466]
[1732457469012,3.02701,3303.6,3302.6,2.997606]
[1732457469216,3.02729,3303.3,3302.6,2.72509]
[1732457469395,3.02746,3303.1,3302.4,2.72527]
[1732457469716,3.02746,3303.1,3302.5,2.7252]
[1732457469717,6.0016,3303.0,3302.5,2.7252]
[1732457470716,6.0016,3303.0,3302.6,2.72511]
[1732457470927,9.02915,3303.0,3302.4,2.72524]
[1732457471076,6.0016,3303.0,3301.6,2.72594]
[1732457471277,6.0016,3303.0,3302.4,2.72524]
[1732457471507,6.0016,3303.0,3302.2,2.72541]
[1732457471721,6.0016,3303.0,3301.7,0.30287357]
[1732457471874,6.0016,3303.0,3302.1,2.7255]
[1732457472077,6.0016,3303.0,3302.9,2.72487]
[1732457472307,6.0016,3303.0,3302.9,5.72487]
[1732457472879,3.02618,3304.5,3303.8,2.72407]
[1732457473074,3.02598,3304.8,3303.3,2.72449]
[1732457473279,0.11465115,3304.4,3304.3,2.72372]
[1732457473586,3.10589,3304.9,3304.1,3.0]
[1732457473793,0.08,3304.9,3304.6,2.72341]
[1732457473994,6.0524,3304.8,3304.2,3.0]
[1732457474214,6.0524,3304.8,3304.2,0.03026234]
[1732457474391,6.0524,3304.8,3304.6,2.7234]
[1732457474581,6.0524,3304.8,3304.7,2.72339]
[1732457475017,6.0524,3304.8,3304.7,5.72339]
[1732457476219,6.0524,3304.8,3303.9,2.95530839]
[1732457476220,6.0524,3304.8,3304.1,2.72387]
[1732457476403,6.0524,3304.8,3304.6,2.72345]
[1732457476729,6.0524,3304.8,3303.3,0.6185218]
[1732457476896,6.0524,3304.8,3304.4,2.72357]
[1732457477293,6.0524,3304.8,3304.7,2.72339]
[1732457477621,6.0524,3304.8,3304.3,2.72369]
[1732457477804,6.0524,3304.8,3304.7,2.72339]
[1732457478304,6.0524,3304.8,3304.5,5.44698]
[1732457478305,6.0524,3304.8,3304.5,2.72348]
[1732457478505,6.0524,3304.8,3304.6,3.0]
[1732457478709,6.0524,3304.8,3304.6,2.72346]
[1732457479013,6.0524,3304.8,3303.6,0.61018137]
[1732457479014,6.0524,3304.8,3303.9,3.0]
[1732457479225,6.0524,3304.8,3304.7,2.72339]
[1732457480427,6.0524,3304.8,3304.7,3.27339]
[1732457481310,6.16819857,3304.8,3304.7,3.27339]
[1732457482247,6.16819857,3304.8,3304.7,6.27339]
[1732457483617,6.16819857,3304.8,3304.7,3.27339]
[1732457484257,6.16819857,3304.8,3304.7,0.55]
[1732457485131,9.19409857,3304.8,3304.7,0.55]
[1732457485667,12.19409857,3304.8,3304.7,0.55]
[1732457485822,3.02626,3304.4,3304.3,1.6196]
[1732457486018,9.07866,3304.4,3304.3,1.6196]
[1732457486223,9.19436803,3304.4,3304.3,1.6196]
[1732457487023,3.02707,3303.6,3302.9,2.7248]
[1732457487224,3.0272,3303.4,3302.8,2.72491]
[1732457487447,6.0524,3303.3,3302.4,2.72529]
[1732457487721,0.11555706,3303.2,3302.8,2.72493]
[1732457488057,0.11555706,3303.2,3302.2,2.72544]
[1732457488058,3.02761,3303.0,3302.4,2.72526]
[1732457488357,6.0524,3302.9,3302.4,2.72526]
[1732457488620,6.16778449,3302.9,3302.8,2.72496]
[1732457488920,6.16778449,3302.9,3302.4,0.545067]
[1732457488921,6.16778449,3302.9,3302.6,2.72509]
[1732457489090,6.16778449,3302.9,3302.8,2.72496]
[1732457489616,6.0524,3302.9,3302.8,3.54247]
[1732457489910,6.16767229,3302.9,3302.8,3.54247]
[1732457490526,6.16767229,3302.9,3302.8,6.54247]
[1732457490812,6.16767229,3302.9,3302.8,5.72496]
[1732457491109,6.0524,3302.9,3302.8,2.72496]
[1732457491499,6.16774565,3302.9,3302.8,2.72496]
[1732457492094,4.55313,3302.8,3300.8,2.72655]
[1732457492286,4.55313,3302.8,3299.6,2.3459447]
[1732457492287,4.55469,3301.1,3300.2,2.72708]
[1732457492510,7.5778,3301.1,3300.2,2.7271]
[1732457492715,7.5778,3301.1,3300.0,1.5415]
[1732457492716,6.16767229,3301.1,3300.6,2.72675]
[1732457493242,6.16767229,3301.1,3300.9,2.7265]
[1732457493787,6.16767229,3301.1,3300.6,0.06925147]
[1732457494001,6.16767229,3301.1,3300.6,2.79594147]
[1732457494289,6.16767229,3301.1,3301.0,2.72644]
[1732457494807,6.0524,3301.1,3301.0,2.72644]
[1732457495002,6.16763777,3301.1,3301.0,3.0]
[1732457495320,6.16763777,3301.1,3300.9,3.0]
[1732457495543,6.16763777,3301.1,3300.7,6.00627415]
[1732457495687,6.0524,3301.1,3300.5,1.5415]
[1732457495888,6.0524,3301.1,3300.5,3.0]
[1732457496084,0.11523777,3301.0,3300.5,0.3]
[1732457496289,6.0524,3300.9,3300.2,2.72709]
[1732457496511,6.0524,3300.9,3300.3,3.288124]
[1732457496713,6.0524,3300.9,3300.1,0.15415]
[1732457496922,3.14480777,3300.8,3300.0,2.72725]
[1732457497242,3.14480777,3300.8,3298.7,0.61001611]
[1732457497243,4.55625,3299.4,3298.2,2.72874]
[1732457497525,4.55625,3299.4,3298.4,2.72851]
[1732457497526,1.5254,3299.4,3298.4,2.72851]
[1732457497693,0.11360613,3299.3,3298.7,2.72827]
[1732457497888,6.16600613,3299.3,3299.0,2.72809]
[1732457498122,6.0524,3299.3,3298.5,0.09960452]
[1732457498424,6.0524,3299.3,3299.1,2.72801]
[1732457498425,0.11360613,3299.2,3299.1,2.72801]
[1732457498798,6.16600613,3299.2,3299.1,2.72801]
[1732457499124,6.16600613,3299.2,3299.1,3.27362]
[1732457499287,6.16600613,3299.2,3299.1,3.82362]
[1732457500310,6.16600613,3299.2,3299.1,6.82362]
[1732457501018,6.04154932,3299.2,3299.1,6.82362]
[1732457501220,1.59880528,3299.2,3299.1,8.36512]
[1732457501519,8.99,3301.8,3300.8,2.72659]
[1732457501520,1.5254,3301.5,3300.8,2.72659]
[1732457501722,1.5254,3301.5,3299.2,3.0]
[1732457501723,1.5254,3301.5,3300.7,2.72661]
[1732457501917,0.1003556,3301.4,3300.7,2.72661]
[1732457502253,0.1003556,3301.4,3300.9,2.72646]
[1732457502407,0.1003556,3301.4,3301.0,2.72642]
[1732457502833,1.6392,3300.9,3300.5,0.03029205]
[1732457503009,3.02972,3300.7,3299.3,0.03030623]
[1732457503209,3.03004,3300.3,3299.0,0.03030149]
[1732457503445,3.02985,3300.5,3299.7,2.7275]
[1732457503742,0.1003556,3300.2,3299.5,2.72767]
[1732457503943,3.03013,3300.2,3299.3,2.72784]
[1732457504244,3.03013,3300.2,3299.5,2.72762]
[1732457504454,0.1003556,3300.1,3299.5,2.72762]
[1732457504820,0.1003556,3300.1,3299.6,2.72759]
[1732457505021,3.02994,3300.4,3299.7,2.72752]
[1732457505230,3.02994,3300.4,3299.1,0.18589449]
[1732457505231,0.1003556,3300.0,3299.5,2.72764]
[1732457505433,3.03003,3300.3,3299.5,2.72764]
[1732457505642,0.1003556,3299.9,3299.5,2.72764]
[1732457505849,3.02985,3300.5,3299.7,2.72747]
[1732457506015,1.6392,3300.9,3299.7,0.5455]
[1732457506016,0.1003556,3299.8,3299.7,0.5455]
[1732457506339,3.03009,3300.3,3299.4,2.72775]
[1732457506539,3.03009,3300.3,3299.6,2.72758]
[1732457506854,0.1003556,3300.2,3299.6,2.72758]
[1732457507210,0.1003556,3300.2,3299.5,0.272775]
[1732457507211,1.6392,3300.1,3299.5,2.72767]
[1732457507412,1.6392,3300.1,3299.2,0.29442294]
[1732457507642,0.1003556,3300.0,3299.6,2.7276]
[1732457507843,0.1003556,3300.0,3299.7,2.7275]
[1732457508155,1.6392,3300.6,3300.0,2.72722]
[1732457508948,1.6392,3300.6,3299.7,2.72746]
[1732457509249,3.03021,3300.1,3299.5,2.72766]
[1732457509816,3.03021,3300.1,3298.2,0.3023]
[1732457510028,3.03022,3300.1,3299.3,2.72785]
[1732457510234,1.6392,3300.6,3299.0,2.72803]
[1732457510466,1.6392,3299.7,3299.0,2.72803]
[1732457510927,1.6392,3299.7,3299.3,2.72778]
[1732457511133,6.061,3299.6,3299.3,2.72778]
[1732457511330,6.061,3299.6,3299.1,2.72798]
[1732457511517,3.03083,3299.5,3298.6,2.89466]
[1732457511715,6.061,3299.4,3298.7,2.72829]
[1732457512027,6.061,3299.4,3298.9,2.72815]
[1732457512230,6.061,3299.4,3298.7,0.562295]
[1732457512528,3.03118,3299.1,3298.4,2.72858]
[1732457512765,6.061,3299.0,3298.4,2.72858]
[1732457513061,6.061,3299.0,3298.6,2.7284]
[1732457513273,6.061,3299.0,3297.8,2.75935424]
[1732457513274,3.03156,3298.7,3297.8,2.72908]
[1732457513476,1.6392,3298.4,3297.9,2.72898]
[1732457513629,1.6392,3298.4,3298.1,2.72877]
[1732457513938,6.061,3298.3,3297.9,2.72894]
[1732457514587,6.061,3298.3,3298.0,2.72892]
[1732457514752,6.061,3298.3,3298.1,2.72878]
[1732457515268,6.061,3298.3,3297.9,2.72899]
[1732457515643,6.061,3298.3,3298.0,2.72887]
[1732457516063,6.061,3298.3,3296.9,2.72983]
[1732457516275,6.061,3298.3,3296.8,1.6624]
[1732457516276,6.061,3298.3,3297.6,2.72919]
[1732457516586,6.061,3298.3,3298.0,2.72892]
[1732457517145,6.061,3298.3,3298.2,2.72876]
[1732457517548,6.16099557,3298.3,3298.2,3.274528]
[1732457517790,6.16099557,3298.3,3298.2,2.72876]
[1732457517947,9.19285557,3298.3,3297.6,2.72922]
[1732457518281,6.16099557,3298.3,3297.8,2.72908]
[1732457518491,6.16099557,3298.3,3297.9,2.72897]
[1732457518657,6.16099557,3298.3,3298.0,2.7289]
[1732457518855,6.16099557,3298.3,3297.9,2.72897]
[1732457519068,6.16099557,3298.3,3298.2,2.72876]
[1732457519368,6.16099557,3298.3,3298.0,2.72885]
[1732457519883,6.16099557,3298.3,3298.2,2.72876]
[1732457520478,6.16099557,3298.3,3298.2,3.547406]
[1732457520975,6.16099557,3298.3,3298.2,5.209806]
[1732457521284,6.061,3298.3,3298.2,5.209806]
[1732457521673,6.16043157,3298.3,3298.2,5.209806]
[1732457521988,1.6087,3300.2,3300.0,2.72721]
[1732457522197,1.6087,3300.2,3300.1,2.72719]
[1732457522587,3.45,3300.6,3300.5,2.72685]
[1732457522588,5.0587,3300.6,3300.5,2.72685]
[1732457522965,1.6887,3300.6,3300.3,2.72695]
[1732457523365,0.08,3300.6,3300.5,2.72685]
[1732457523691,6.1396,3300.6,3300.5,2.72685]
[1732457524265,6.0596,3300.6,3300.5,2.72685]
[1732457524514,6.0596,3300.6,3300.5,3.27223]
[1732457525166,1.51496,3300.6,3300.5,3.27223]
[1732457525379,8e-05,3300.6,3300.5,3.27223]
[1732457525563,8e-05,3300.6,3300.5,3.82223]
[1732457526199,1.6213,3302.2,3302.0,2.7256]
[1732457526475,1.6213,3302.2,3300.6,2.72677]
[1732457526476,1.6213,3302.2,3301.0,1.5395]
[1732457526767,1.6213,3302.2,3301.9,2.72563]
[1732457527164,1.6213,3302.2,3301.7,2.72585]
[1732457529093,0.09705378,3300.6,3300.5,2.72685]
[1732457529406,1.6213,3301.2,3300.5,2.72685]
[1732457529614,1.6213,3301.2,3301.1,2.72636]
[1732457529824,1.6213,3301.8,3300.9,2.72645]
[1732457529978,3.02941,3301.0,3299.4,0.42976526]
[1732457530183,3.02941,3301.0,3299.3,1.5395]
[1732457530184,1.6213,3300.9,3300.3,2.72694]
[1732457530487,1.6213,3300.9,3300.4,2.72693]
[1732457530686,1.6213,3300.9,3300.6,2.72677]
[1732457530927,1.6213,3300.9,3299.5,2.72761]
[1732457531083,1.6213,3300.9,3299.6,0.27579082]
[1732457531415,1.6213,3300.9,3300.3,2.42396]
[1732457531910,4.65078,3300.9,3300.3,2.42396]
[1732457532113,4.65078,3300.9,3299.9,2.42431]
[1732457532114,1.6213,3300.9,3299.9,2.42431]
[1732457532422,1.4702,3301.5,3300.9,2.42353]
[1732457532582,1.4702,3301.5,3301.0,2.42345]
[1732457532982,1.4702,3301.5,3301.1,2.4234]
[1732457533617,1.4702,3301.5,3301.0,2.42349]
[1732457533825,1.4702,3301.5,3300.3,2.42398]
[1732457534121,3.10865,3301.9,3300.3,2.42398]
[1732457534122,0.08,3301.9,3300.7,2.42367]
[1732457534291,0.08,3301.9,3301.8,2.42292]
[1732457534617,0.08,3302.0,3301.9,2.42284]
[1732457535484,0.08,3302.0,3301.1,1.5862]
[1732457535794,3.02823,3302.3,3301.6,2.42304]
[1732457535990,3.45,3302.4,3300.7,0.60126313]
[1732457536220,3.02844,3302.1,3300.7,4.84744]
[1732457536524,3.02844,3302.1,3300.6,1.5862]
[1732457536525,3.02858,3301.9,3301.2,2.4233]
[1732457536720,3.02858,3301.9,3300.6,1.5862]
[1732457536721,3.02865,3301.8,3301.1,2.42339]
[1732457536921,3.02865,3301.8,3300.9,4.84708]
[1732457536922,3.02881,3301.7,3300.9,4.84708]
[1732457537146,3.02886,3301.6,3301.0,2.4235]
[1732457537333,3.02865,3301.8,3301.1,2.42337]
[1732457537533,3.02865,3301.8,3301.2,2.42335]
[1732457537688,3.02865,3301.8,3301.0,2.4235]
[1732457537885,1.4702,3301.7,3300.2,7.01024]
[1732457538080,1.4702,3301.7,3301.2,2.42333]
[1732457538323,1.4702,3301.7,3300.3,0.57270726]
[1732457538495,1.4702,3301.7,3300.6,2.4238]
[1732457538700,1.4702,3302.2,3300.8,1.5862]
[1732457538899,3.45,3302.4,3302.2,2.42257]
[1732457538900,0.08,3302.4,3302.2,2.42257]
[1732457539188,1.5502,3302.7,3302.2,2.42257]
[1732457539608,3.02808,3302.5,3301.6,2.42304]
[1732457539826,3.02808,3302.5,3301.8,2.42286]
[1732457540001,3.02841,3302.1,3301.4,2.4232]
[1732457540203,3.02841,3302.1,3301.2,2.42333]
[1732457540204,3.02841,3302.1,3301.2,2.42329]
[1732457540385,0.08,3302.7,3301.2,2.42329]
[1732457540386,3.02866,3301.8,3301.2,2.42329]
[1732457540726,3.02826,3302.3,3301.6,2.42304]
[1732457540963,3.02826,3302.3,3301.7,2.42293]
[1732457541249,3.02816,3302.4,3301.8,2.42285]
[1732457541418,3.02816,3302.4,3301.7,2.42299]
[1732457541626,1.4702,3302.5,3301.8,2.42291]
[1732457541942,1.4702,3302.5,3302.1,2.42269]
[1732457542141,1.4702,3302.5,3302.2,2.42255]
[1732457542305,0.08,3302.7,3302.4,2.42248]
[1732457542507,0.08,3302.7,3302.5,2.42239]
[1732457542743,4.9202,3303.0,3302.7,2.42219]
[1732457543043,4.9202,3303.0,3302.9,2.42211]
[1732457543217,3.45,3303.0,3302.9,2.42211]
[1732457543431,0.08,3303.0,3302.9,2.42211]
[1732457543835,0.08,3303.0,3302.7,2.42219]
[1732457544457,0.08,3303.0,3302.7,2.42221]
[1732457545155,0.08,3303.0,3302.9,2.42211]
[1732457545465,0.08,3303.0,3302.7,2.42221]
[1732457545957,0.08,3303.0,3302.6,2.42227]
[1732457546162,3.02764,3302.9,3302.2,2.42257]
[1732457546464,0.08,3303.0,3302.7,2.42219]
[1732457546620,0.08,3303.0,3302.9,2.42211]
[1732457546819,4.46112,3303.5,3302.9,2.42211]
[1732457546820,4.54112,3303.5,3302.9,2.42211]
[1732457547460,0.09890903,3303.4,3302.9,2.42211]
[1732457547820,3.12611903,3303.4,3302.7,2.42219]
[1732457548056,3.0277,3302.9,3302.2,2.42257]
[1732457548352,3.0277,3302.9,3301.7,7.00914]
[1732457548353,3.02747,3303.1,3302.5,2.42238]
[1732457548559,0.09890903,3302.8,3302.5,2.42238]
[1732457548760,3.02747,3303.1,3302.5,2.42238]
[1732457549056,0.09890903,3302.7,3302.4,2.42246]
[1732457549256,3.02772,3302.9,3302.3,2.42253]
[1732457549460,0.09890903,3302.6,3302.0,2.42274]
[1732457549641,0.09890903,3302.6,3302.3,2.42253]
[1732457549843,3.02771,3302.9,3302.3,2.42253]
[1732457550047,0.09890903,3302.5,3302.3,2.42253]
[1732457550227,3.02746,3303.1,3302.3,2.42253]
[1732457550434,3.12651903,3303.0,3302.3,2.42253]
[1732457550634,0.09890903,3303.0,3302.7,2.42225]
[1732457550972,1.4669,3303.1,3302.0,0.03027779]
[1732457551183,3.02805,3302.5,3301.8,2.42286]
[1732457551333,3.02805,3302.5,3301.9,2.42284]
[1732457551539,3.02805,3302.5,3301.8,2.42286]
[1732457551540,3.12700903,3302.4,3301.7,2.42294]
[1732457551777,3.0282,3302.3,3301.7,2.42294]
[1732457552070,3.02857,3301.9,3301.2,1.4462]
[1732457552282,3.02861,3301.9,3301.2,2.42331]
[1732457552480,3.02861,3301.9,3300.6,0.03028672]
[1732457552481,3.02846,3302.0,3300.9,2.42356]
[1732457552668,3.02882,3301.7,3300.9,2.42356]
[1732457552873,0.09890903,3301.8,3301.2,2.42331]
[1732457552874,3.02865,3301.8,3301.2,2.42331]
[1732457553176,6.15710903,3301.6,3301.0,2.4235]
[1732457553399,6.15710903,3301.6,3300.9,2.42353]
[1732457553400,6.0582,3301.6,3300.9,2.42353]
[1732457553571,3.12788903,3301.5,3300.9,2.42353]
[1732457553771,6.0582,3301.4,3301.1,2.42337]
[1732457553977,6.0582,3301.4,3301.3,2.42328]
[1732457554481,6.0582,3301.4,3301.1,2.42337]
[1732457554781,6.0582,3301.4,3301.2,2.42335]
[1732457554980,6.0582,3301.4,3300.6,0.1688591]
[1732457555194,6.0582,3301.4,3301.1,2.42336]
[1732457556066,9.08727,3301.4,3300.7,0.85312532]
[1732457556249,1.4669,3301.3,3300.1,2.4241]
[1732457556455,3.02947,3301.0,3300.3,2.42401]
[1732457556758,6.0582,3300.9,3300.3,2.42401]
[1732457556962,9.08768,3300.9,3300.3,2.908821]
[1732457557184,6.0582,3300.9,3299.9,2.42429]
[1732457557502,3.02998,3300.4,3299.8,2.666809]
[1732457557797,6.0582,3300.3,3299.8,2.42437]
[1732457558510,6.0582,3300.3,3299.6,2.42451]
[1732457558651,6.0582,3300.3,3299.7,0.387071]
[1732457558854,6.0582,3300.3,3299.8,2.42433]
[1732457559463,6.0582,3300.3,3299.7,0.387071]
[1732457559666,6.0582,3300.3,3299.7,2.811521]
[1732457559848,9.08823,3300.3,3299.7,0.387071]
[1732457560053,9.08823,3300.3,3299.5,2.4246]
[1732457560385,6.0582,3300.3,3299.8,2.42433]
[1732457560693,6.0582,3300.3,3299.9,0.242433]
[1732457560874,6.0582,3300.3,3300.0,2.42423]
[1732457561198,6.0582,3300.3,3300.1,2.42415]
[1732457561494,6.0582,3300.3,3300.0,2.42423]
[1732457561689,6.0582,3300.3,3300.1,2.42415]
[1732457561849,6.0582,3300.3,3299.8,2.42436]
[1732457562050,6.0582,3300.3,3299.7,0.24548699]
[1732457562254,6.0582,3300.3,3299.2,2.45505988]
[1732457562255,0.09838479,3300.2,3299.3,4.8495]
[1732457562484,6.0582,3300.1,3299.8,2.42433]
[1732457562876,0.09838479,3300.0,3299.8,2.42433]
[1732457563289,0.09838479,3300.0,3299.9,2.42431]
[1732457563461,0.09838479,3300.0,3299.8,2.42433]
[1732457563879,0.09838479,3300.0,3299.9,2.42431]
[1732457564213,0.09838479,3300.0,3299.8,2.42438]
[1732457564700,0.09838479,3300.0,3299.6,2.42453]
[1732457565067,0.09838479,3300.0,3299.7,2.42445]
[1732457565276,0.09838479,3300.0,3299.7,0.59951834]
[1732457566102,0.09838479,3300.0,3299.3,2.42472]
[1732457566309,0.09838479,3300.0,3299.2,0.60780801]
[1732457566310,3.0304,3299.9,3299.2,0.60780801]
[1732457566477,3.12790518,3299.9,3299.2,2.42478]
[1732457566682,3.03073,3299.6,3298.9,2.967558]
[1732457566869,3.03066,3299.7,3299.1,2.42487]
[1732457567068,0.09750518,3299.6,3299.1,2.42487]
[1732457567326,0.09750518,3299.6,3299.3,2.4247]
[1732457567490,0.09750518,3299.6,3299.4,2.42467]
[1732457567814,10.58305,3300.1,3299.5,2.4246]
[1732457568107,3.03039,3299.9,3299.4,2.42467]
[1732457568267,3.0303,3300.0,3299.4,2.42467]
[1732457568469,3.03039,3299.9,3299.2,2.42477]
[1732457568692,7.5528,3300.1,3298.6,2.42523]
[1732457568942,3.03083,3299.5,3298.2,2.42553]
[1732457569138,3.0314,3298.9,3298.2,2.42553]
[1732457569292,0.08,3299.4,3298.2,2.42553]
[1732457569293,1.4946,3298.8,3298.4,2.42538]
[1732457569493,7.5528,3298.8,3298.4,2.4254]
[1732457569801,7.5528,3298.8,3298.3,2.42542]
[1732457570146,7.5528,3298.8,3297.9,0.2098065]
[1732457570437,7.5528,3298.8,3298.5,2.42533]
[1732457570596,6.0582,3298.8,3298.5,4.85061]
[1732457570928,6.0582,3298.8,3297.6,2.42597]
[1732457570929,3.03248,3297.7,3296.1,1.4849]
[1732457571136,1.4946,3297.9,3296.7,0.61824849]
[1732457571334,3.03276,3297.4,3296.4,2.42683]
[1732457571537,6.0582,3297.3,3296.6,2.42672]
[1732457571836,6.0582,3297.3,3296.7,2.4266]
[1732457572045,6.0582,3297.3,3296.6,2.42674]
[1732457572334,6.0582,3297.3,3296.7,2.4266]
[1732457572501,6.0582,3297.3,3296.5,2.4961376]
[1732457572696,6.0582,3297.3,3296.7,2.42661]
[1732457572945,6.0582,3297.3,3296.8,2.42659]
[1732457573435,6.0582,3297.3,3296.7,0.49227476]
[1732457573623,6.0582,3297.3,3297.2,2.4263]
[1732457574429,6.0582,3297.3,3297.2,4.0187]
[1732457575249,1.5483,3298.5,3297.1,0.03032566]
[1732457575250,3.37,3299.4,3297.7,2.42591]
[1732457575401,3.37,3299.4,3297.9,2.42578]
[1732457575402,1.5483,3299.1,3297.9,2.42578]
[1732457575603,0.0953011,3298.7,3298.5,2.42531]
[1732457575938,4.65949,3299.1,3298.4,2.42538]
[1732457576305,0.0953011,3299.0,3298.2,0.0303151]
[1732457576628,0.0953011,3299.0,3298.7,2.42517]
[1732457576938,0.0953011,3299.0,3298.2,0.27591761]
[1732457577137,0.0953011,3299.0,3298.9,2.42505]
[1732457577504,0.0953011,3299.0,3298.5,2.42531]
[1732457578239,0.0953011,3299.0,3298.3,2.42548]
[1732457578538,0.0953011,3299.0,3298.1,2.42562]
[1732457578539,3.1265411,3299.0,3298.2,2.42556]
[1732457578933,0.0953011,3299.0,3298.5,2.42533]
[1732457579136,0.0953011,3299.0,3298.6,2.42522]
[1732457579331,0.0953011,3299.0,3298.4,2.42539]
[1732457579755,5.12961,3298.9,3297.5,0.60891488]
[1732457579969,4.65961,3298.9,3297.6,0.03031511]
[1732457580172,0.0953011,3298.8,3297.6,0.03031511]
[1732457580371,0.0953011,3298.8,3298.7,2.42519]
[1732457580737,0.0953011,3298.8,3298.2,2.42551]
[1732457581065,3.03169,3298.5,3297.7,2.42593]
[1732457581272,3.03169,3298.5,3297.9,2.42578]
[1732457581478,2.0983,3298.7,3298.1,2.42559]
[1732457581775,5.12987,3298.7,3298.0,2.42568]
[1732457582081,0.0953011,3298.6,3298.3,2.42542]
[1732457582257,0.0953011,3298.6,3298.4,0.242542]
[1732457582432,0.55,3298.7,3297.9,2.42576]
[1732457582628,0.0953011,3298.5,3298.0,2.4257]
[1732457582872,3.58156,3298.7,3298.0,2.4257]
[1732457583371,0.0953011,3298.6,3297.9,2.42577]
[1732457583681,3.03182,3298.4,3297.7,2.42591]
[1732457583844,3.03206,3298.1,3297.3,2.4262]
[1732457584355,0.0953011,3298.0,3297.4,2.42615]
[1732457585167,0.0953011,3298.0,3297.2,2.668916]
[1732457585168,0.0953011,3298.0,3297.2,0.242636]
[1732457585404,0.0953011,3298.0,3296.8,1.53362338]
[1732457585671,0.0953011,3298.0,3297.7,2.42593]
[1732457585872,4.57641,3298.4,3297.8,2.42585]
[1732457586072,0.09555293,3297.9,3297.8,2.42585]
[1732457586282,0.09555293,3297.9,3297.3,2.4262]
[1732457586484,3.03202,3298.2,3297.5,2.42603]
[1732457586788,3.03202,3298.2,3297.6,0.242603]
[1732457586789,0.09555293,3298.1,3297.6,0.242603]
[1732457587090,0.09555293,3298.1,3297.5,2.42603]
[1732457587252,0.09555293,3298.1,3297.9,2.42578]
[1732457587454,1.5446,3298.4,3298.3,2.42549]
[1732457587689,1.6246,3298.8,3298.5,2.42534]
[1732457587858,0.08,3298.8,3298.5,2.667874]
[1732457588058,0.08,3298.8,3298.5,2.42534]
[1732457588279,0.08,3298.8,3297.9,2.42577]
[1732457588461,1.5446,3298.4,3297.9,2.42578]
[1732457588693,1.5446,3298.4,3297.9,2.42575]
[1732457589003,1.5446,3298.4,3297.7,0.03032069]
[1732457589188,1.5446,3298.4,3298.0,2.42565]
[1732457589359,1.5446,3298.4,3298.2,2.42555]
[1732457589564,0.08,3298.6,3298.4,2.4254]
[1732457589862,0.08,3298.8,3298.7,2.42519]
[1732457590514,0.08,3299.2,3299.1,2.4249]
[1732457590662,4.57524,3299.7,3299.1,2.4249]
[1732457590864,4.57524,3299.7,3299.2,2.42481]
[1732457590865,1.5446,3299.7,3299.2,2.42481]
[1732457591067,0.08,3299.8,3298.7,2.42519]
[1732457591297,0.08,3299.8,3299.6,2.42446]
[1732457591618,0.08,3299.8,3299.0,2.42494]
[1732457591619,0.08,3299.8,3299.5,2.42454]
[1732457591895,0.08,3299.8,3299.7,2.42446]
[1732457592413,0.17555293,3299.8,3299.5,2.42454]
[1732457592703,3.03073,3299.6,3298.9,2.42497]
[1732457593002,3.03073,3299.6,3298.9,4.84994]
[1732457593195,0.09632531,3299.5,3298.9,4.84994]
[1732457593362,0.09632531,3299.5,3298.9,2.42497]
[1732457593562,0.55,3299.7,3299.0,2.42492]
[1732457593795,0.55,3299.7,3298.7,2.42519]
[1732457593796,0.09632531,3299.4,3298.7,2.42519]
[1732457594008,4.57554,3299.3,3298.7,2.42519]
[1732457594176,4.67186531,3299.3,3298.6,2.4252]
[1732457594374,3.58109,3299.2,3298.3,2.42544]
[1732457594699,0.09632531,3299.1,3298.5,2.42534]
[1732457594864,0.09632531,3299.1,3298.8,2.42511]
[1732457595068,1.6246,3299.3,3299.0,2.42497]
[1732457595315,1.6246,3299.3,3299.2,2.42483]
[1732457595316,0.08,3299.3,3299.2,2.42483]
[1732457595818,1.5446,3299.7,3299.6,2.42453]
[1732457595819,0.08,3299.7,3299.6,2.42453]
[1732457599611,0.08,3299.7,3299.3,2.42474]
[1732457599814,0.08,3299.7,3299.4,2.42467]
[1732457600125,0.08,3299.7,3299.3,2.42474]
[1732457600408,0.08,3299.7,3298.8,5.42507]
[1732457600409,0.08,3299.7,3299.4,2.42462]
[1732457600703,0.08,3299.7,3299.5,2.4246]
[1732457600914,0.08,3299.7,3298.9,0.57281215]
[1732457601114,1.6246,3299.7,3299.1,2.42485]
[1732457601308,0.09686332,3299.6,3299.1,2.42485]
[1732457601613,3.03092,3299.4,3298.7,2.42514]
[1732457601773,3.03092,3299.4,3298.7,4.85028]